[Event "Titled Tuesday Blitz November 01 Late 2022"]
[White "Velikanov, Alexander"]
[Black "Zhigalko, Sergei"]
[WhiteFideId "2039290"]
[BlackFideId "13502956"]
[WhiteElo "2259"]
[BlackElo "2662"]
[Result "0-1"]
[Round "05"]
[TimeControl "180+1"]
[Date "2022.11.01"]
[WhiteClock "0:00:04"]
[BlackClock "0:00:54"]

1. e4 {[%clk 0:02:59]}  c5 {[%clk 0:03:00]} 2. Nc3 {[%clk 0:02:58]}  Nc6 {[%clk 0:03:00]} 3. Bb5 {[%clk 0:02:57]}  Nd4 {[%clk 0:03:00]} 4. Nf3 {[%clk 0:02:57]}  e6 {[%clk 0:03:01]} 5. O-O {[%clk 0:02:49]}  a6 {[%clk 0:03:01]} 6. Bd3 {[%clk 0:02:49]}  Nxf3+ {[%clk 0:03:01]} 7. Qxf3 {[%clk 0:02:49]}  Bd6 {[%clk 0:02:58]} 8. b3 {[%clk 0:02:39]}  Qc7 {[%clk 0:02:55]} 9. g3 {[%clk 0:02:35]}  Ne7 {[%clk 0:02:56]} 10. Bb2 {[%clk 0:02:32]}  Be5 {[%clk 0:02:56]} 11. Nd1 {[%clk 0:02:27]}  Bxb2 {[%clk 0:02:45]} 12. Nxb2 {[%clk 0:02:28]}  O-O {[%clk 0:02:46]} 13. Rfe1 {[%clk 0:02:01]}  b6 {[%clk 0:02:32]} 14. e5 {[%clk 0:01:38]}  Bb7 {[%clk 0:02:30]} 15. Be4 {[%clk 0:01:38]}  Nc6 {[%clk 0:02:15]} 16. Qh5 {[%clk 0:01:25]}  g6 {[%clk 0:02:12]} 17. Qg5 {[%clk 0:01:24]}  Nxe5 {[%clk 0:02:01]} 18. Bxb7 {[%clk 0:00:40]}  f6 {[%clk 0:02:01]} 19. Qf4 {[%clk 0:00:18]}  Qxb7 {[%clk 0:02:00]} 20. Re3 {[%clk 0:00:18]}  g5 {[%clk 0:01:52]} 21. Qe4 {[%clk 0:00:16]}  d5 {[%clk 0:01:47]} 22. Qg2 {[%clk 0:00:15]}  g4 {[%clk 0:01:39]} 23. Nd3 {[%clk 0:00:09]}  Nf3+ {[%clk 0:01:39]} 24. Rxf3 {[%clk 0:00:09]}  gxf3 {[%clk 0:01:40]} 25. Qxf3 {[%clk 0:00:10]}  e5 {[%clk 0:01:37]} 26. Qf5 {[%clk 0:00:06]}  Rad8 {[%clk 0:01:32]} 27. Re1 {[%clk 0:00:05]}  Qd7 {[%clk 0:01:32]} 28. Qh5 {[%clk 0:00:05]}  Qf7 {[%clk 0:01:31]} 29. Qh4 {[%clk 0:00:04]}  Kh8 {[%clk 0:01:29]} 30. Qa4 {[%clk 0:00:03]}  Qb7 {[%clk 0:01:27]} 31. f4 {[%clk 0:00:04]}  e4 {[%clk 0:01:26]} 32. Nf2 {[%clk 0:00:04]}  b5 {[%clk 0:01:23]} 33. Qa3 {[%clk 0:00:04]}  Qc6 {[%clk 0:01:22]} 34. Qb2 {[%clk 0:00:05]}  Rfe8 {[%clk 0:01:19]} 35. d3 {[%clk 0:00:05]}  exd3 {[%clk 0:01:12]} 36. Rxe8+ {[%clk 0:00:06]}  Rxe8 {[%clk 0:01:13]} 37. cxd3 {[%clk 0:00:03]}  Qe6 {[%clk 0:01:11]} 38. Kg2 {[%clk 0:00:01]}  Kg7 {[%clk 0:01:05]} 39. Qc1 {[%clk 0:00:01]}  Rc8 {[%clk 0:01:02]} 40. a4 {[%clk 0:00:01]}  c4 {[%clk 0:01:01]} 41. dxc4 {[%clk 0:00:02]}  bxc4 {[%clk 0:01:02]} 42. bxc4 {[%clk 0:00:03]}  dxc4 {[%clk 0:01:02]} 43. Qd1 {[%clk 0:00:03]}  c3 {[%clk 0:00:59]} 44. Qh5 {[%clk 0:00:04]}  c2 {[%clk 0:00:54]} 0-1


[Site "https://www.chess.com"]

[Event "Titled Tuesday Blitz November 01 Late 2022"]
[White "Vlassov, Nikolai"]
[Black "Mikhailuk, Slava"]
[WhiteFideId "4103360"]
[BlackFideId "2012910"]
[WhiteElo "2324"]
[BlackElo "2353"]
[Result "1/2-1/2"]
[Round "05"]
[TimeControl "180+1"]
[Date "2022.11.02"]
[WhiteClock "0:01:40"]
[BlackClock "0:00:32"]

1. e4 {[%clk 0:03:00]}  c5 {[%clk 0:02:58]} 2. c3 {[%clk 0:03:00]}  Nf6 {[%clk 0:02:56]} 3. e5 {[%clk 0:03:01]}  Nd5 {[%clk 0:02:56]} 4. d4 {[%clk 0:03:02]}  cxd4 {[%clk 0:02:56]} 5. c4 {[%clk 0:03:02]}  Nb6 {[%clk 0:02:49]} 6. Nf3 {[%clk 0:02:56]}  Nc6 {[%clk 0:02:48]} 7. Bf4 {[%clk 0:02:53]}  d5 {[%clk 0:02:40]} 8. exd6 {[%clk 0:02:46]}  exd6 {[%clk 0:02:28]} 9. Nxd4 {[%clk 0:02:46]}  Be7 {[%clk 0:02:22]} 10. Nc3 {[%clk 0:02:44]}  O-O {[%clk 0:02:21]} 11. Be2 {[%clk 0:02:44]}  Bf6 {[%clk 0:02:19]} 12. Nxc6 {[%clk 0:02:42]}  bxc6 {[%clk 0:02:19]} 13. Qxd6 {[%clk 0:02:42]}  Qxd6 {[%clk 0:02:15]} 14. Bxd6 {[%clk 0:02:42]}  Re8 {[%clk 0:02:15]} 15. Kf1 {[%clk 0:02:35]}  Bf5 {[%clk 0:02:06]} 16. c5 {[%clk 0:02:29]}  Bxc3 {[%clk 0:02:04]} 17. bxc3 {[%clk 0:02:28]}  Nd5 {[%clk 0:02:04]} 18. Rc1 {[%clk 0:02:21]}  g5 {[%clk 0:01:49]} 19. g4 {[%clk 0:02:08]}  Bg6 {[%clk 0:01:32]} 20. h4 {[%clk 0:02:07]}  gxh4 {[%clk 0:01:29]} 21. Rxh4 {[%clk 0:02:07]}  Re4 {[%clk 0:01:26]} 22. Bf3 {[%clk 0:02:02]}  Ra4 {[%clk 0:01:25]} 23. Bxd5 {[%clk 0:02:02]}  cxd5 {[%clk 0:01:25]} 24. c6 {[%clk 0:02:02]}  Ra6 {[%clk 0:01:24]} 25. f4 {[%clk 0:01:52]}  Rxc6 {[%clk 0:01:22]} 26. Be5 {[%clk 0:01:52]}  Be4 {[%clk 0:01:21]} 27. f5 {[%clk 0:01:49]}  f6 {[%clk 0:01:17]} 28. Bd4 {[%clk 0:01:49]}  Ra6 {[%clk 0:00:55]} 29. Rh6 {[%clk 0:01:47]}  Rf8 {[%clk 0:00:54]} 30. Ra1 {[%clk 0:01:42]}  Kg7 {[%clk 0:00:44]} 31. Rxf6 {[%clk 0:01:41]}  Rfxf6 {[%clk 0:00:43]} 32. g5 {[%clk 0:01:41]}  Bxf5 {[%clk 0:00:43]} 33. gxf6+ {[%clk 0:01:42]}  Kf7 {[%clk 0:00:39]} 34. Re1 {[%clk 0:01:40]}  Re6 {[%clk 0:00:36]} 35. Be5 {[%clk 0:01:39]}  Be4 {[%clk 0:00:33]} 36. Bd4 {[%clk 0:01:39]}  Bd3+ {[%clk 0:00:33]} 37. Kf2 {[%clk 0:01:40]}  Rxe1 {[%clk 0:00:33]} 38. Kxe1 {[%clk 0:01:41]}  Bc4 {[%clk 0:00:32]} 39. a3 {[%clk 0:01:41]}  a6 {[%clk 0:00:32]} 40. Kf2 {[%clk 0:01:41]}  Ke6 {[%clk 0:00:32]} 41. Kg3 {[%clk 0:01:40]}  Bd3 {[%clk 0:00:32]} 42. Kg4 {[%clk 0:01:40]} 1/2-1/2


[Site "https://www.chess.com"]

[Event "Titled Tuesday Blitz November 01 Late 2022"]
[White "Wessendorf, Thomas, Dr."]
[Black "Joubert, Dantelle"]
[WhiteFideId "4604270"]
[BlackFideId "14310813"]
[WhiteElo "2280"]
[BlackElo "1507"]
[Result "1-0"]
[Round "05"]
[TimeControl "180+1"]
[Date "2022.11.02"]
[WhiteClock "0:00:07"]
[BlackClock "0:00:01"]

1. e4 {[%clk 0:02:59]}  e5 {[%clk 0:02:59]} 2. Nf3 {[%clk 0:02:59]}  Nc6 {[%clk 0:02:58]} 3. Bb5 {[%clk 0:02:59]}  Nf6 {[%clk 0:02:55]} 4. d3 {[%clk 0:02:56]}  Bc5 {[%clk 0:02:54]} 5. O-O {[%clk 0:02:56]}  O-O {[%clk 0:02:52]} 6. c3 {[%clk 0:02:55]}  d5 {[%clk 0:02:51]} 7. Nbd2 {[%clk 0:02:47]}  Bg4 {[%clk 0:02:45]} 8. h3 {[%clk 0:02:44]}  Bxf3 {[%clk 0:02:43]} 9. Qxf3 {[%clk 0:02:42]}  dxe4 {[%clk 0:02:40]} 10. dxe4 {[%clk 0:02:30]}  Ne7 {[%clk 0:02:37]} 11. Rd1 {[%clk 0:02:26]}  Qc8 {[%clk 0:02:31]} 12. Nf1 {[%clk 0:02:23]}  Ng6 {[%clk 0:02:16]} 13. Bg5 {[%clk 0:02:22]}  Be7 {[%clk 0:02:12]} 14. Ng3 {[%clk 0:02:14]}  h6 {[%clk 0:02:04]} 15. Be3 {[%clk 0:01:51]}  Nh4 {[%clk 0:01:53]} 16. Qe2 {[%clk 0:01:48]}  c6 {[%clk 0:01:50]} 17. Ba4 {[%clk 0:01:48]}  Qc7 {[%clk 0:01:34]} 18. Bb3 {[%clk 0:01:43]}  a5 {[%clk 0:01:28]} 19. a4 {[%clk 0:01:37]}  Rad8 {[%clk 0:01:18]} 20. Nh5 {[%clk 0:01:31]}  Kh7 {[%clk 0:01:03]} 21. Nxf6+ {[%clk 0:01:13]}  Bxf6 {[%clk 0:01:02]} 22. g3 {[%clk 0:01:07]}  Ng6 {[%clk 0:00:58]} 23. h4 {[%clk 0:01:07]}  Rxd1+ {[%clk 0:00:53]} 24. Rxd1 {[%clk 0:01:06]}  Rd8 {[%clk 0:00:53]} 25. Rxd8 {[%clk 0:01:04]}  Qxd8 {[%clk 0:00:53]} 26. Bxf7 {[%clk 0:01:02]}  Ne7 {[%clk 0:00:43]} 27. h5 {[%clk 0:00:58]}  Nc8 {[%clk 0:00:37]} 28. Bg6+ {[%clk 0:00:57]}  Kh8 {[%clk 0:00:35]} 29. Kg2 {[%clk 0:00:55]}  Ne7 {[%clk 0:00:32]} 30. Bf7 {[%clk 0:00:52]}  Qd7 {[%clk 0:00:29]} 31. Bb3 {[%clk 0:00:42]}  Nc8 {[%clk 0:00:19]} 32. Qc4 {[%clk 0:00:40]}  Qd8 {[%clk 0:00:17]} 33. Bc5 {[%clk 0:00:36]}  Be7 {[%clk 0:00:14]} 34. Be3 {[%clk 0:00:30]}  Bf6 {[%clk 0:00:13]} 35. Qe6 {[%clk 0:00:30]}  Ne7 {[%clk 0:00:11]} 36. Bc5 {[%clk 0:00:26]}  Nc8 {[%clk 0:00:10]} 37. Qg4 {[%clk 0:00:20]}  b6 {[%clk 0:00:10]} 38. Be3 {[%clk 0:00:19]}  c5 {[%clk 0:00:10]} 39. Qg6 {[%clk 0:00:19]}  Ne7 {[%clk 0:00:09]} 40. Qf7 {[%clk 0:00:18]}  Nc8 {[%clk 0:00:10]} 41. Be6 {[%clk 0:00:18]}  Nd6 {[%clk 0:00:10]} 42. Qg6 {[%clk 0:00:15]}  Qe7 {[%clk 0:00:10]} 43. Bd5 {[%clk 0:00:13]}  Qe8 {[%clk 0:00:07]} 44. Qg4 {[%clk 0:00:11]}  Qe7 {[%clk 0:00:07]} 45. f4 {[%clk 0:00:11]}  exf4 {[%clk 0:00:06]} 46. Qxf4 {[%clk 0:00:10]}  Be5 {[%clk 0:00:06]} 47. Qf3 {[%clk 0:00:09]}  Qf6 {[%clk 0:00:04]} 48. Bf4 {[%clk 0:00:09]}  Nf7 {[%clk 0:00:02]} 49. Bxe5 {[%clk 0:00:08]}  Nxe5 {[%clk 0:00:01]} 50. Qf5 {[%clk 0:00:07]}  Qxf5 {[%clk 0:00:01]} 51. exf5 {[%clk 0:00:07]} 1-0


[Site "https://www.chess.com"]

[Event "Titled Tuesday Blitz November 01 Late 2022"]
[White "Winterberg, Lukas"]
[Black "Dehtiarov, Roman"]
[WhiteFideId "24622702"]
[BlackFideId "14186640"]
[WhiteElo "2349"]
[BlackElo "2200"]
[Result "0-1"]
[Round "05"]
[TimeControl "180+1"]
[Date "2022.11.02"]
[WhiteClock "0:01:45"]
[BlackClock "0:01:15"]

1. Nf3 {[%clk 0:03:00]}  Nf6 {[%clk 0:02:59]} 2. c4 {[%clk 0:02:59]}  c5 {[%clk 0:02:59]} 3. Nc3 {[%clk 0:02:59]}  Nc6 {[%clk 0:02:59]} 4. e3 {[%clk 0:03:00]}  e5 {[%clk 0:02:59]} 5. d4 {[%clk 0:03:00]}  cxd4 {[%clk 0:02:59]} 6. exd4 {[%clk 0:03:01]}  e4 {[%clk 0:02:57]} 7. d5 {[%clk 0:02:48]}  exf3 {[%clk 0:02:53]} 8. dxc6 {[%clk 0:02:48]}  Bb4 {[%clk 0:02:35]} 9. cxd7+ {[%clk 0:02:30]}  Bxd7 {[%clk 0:02:36]} 10. Qxf3 {[%clk 0:02:30]}  O-O {[%clk 0:02:33]} 11. Be2 {[%clk 0:02:22]}  Bg4 {[%clk 0:02:13]} 12. Qxb7 {[%clk 0:02:12]}  Rb8 {[%clk 0:01:43]} 13. Qxa7 {[%clk 0:02:12]}  Bxe2 {[%clk 0:01:24]} 14. Kxe2 {[%clk 0:02:12]}  Bxc3 {[%clk 0:01:21]} 15. bxc3 {[%clk 0:02:09]}  Re8+ {[%clk 0:01:17]} 16. Be3 {[%clk 0:02:02]}  Rb2+ {[%clk 0:01:16]} 17. Kf1 {[%clk 0:01:45]}  Qd3+ {[%clk 0:01:16]} 18. Kg1 {[%clk 0:01:45]}  Rb1+ {[%clk 0:01:15]} 0-1


[Site "https://www.chess.com"]

[Event "Titled Tuesday Blitz November 01 Late 2022"]
[White "Xiong, Jeffery"]
[Black "Leiva, Gianmarco"]
[WhiteFideId "2047640"]
[BlackFideId "3804399"]
[WhiteElo "2725"]
[BlackElo "2285"]
[Result "1/2-1/2"]
[Round "05"]
[TimeControl "180+1"]
[Date "2022.11.01"]
[WhiteClock "0:00:04"]
[BlackClock "0:00:05"]

1. e4 {[%clk 0:03:00]}  c5 {[%clk 0:02:58]} 2. Nf3 {[%clk 0:02:59]}  d6 {[%clk 0:02:59]} 3. Nc3 {[%clk 0:03:00]}  a6 {[%clk 0:02:54]} 4. d4 {[%clk 0:02:58]}  cxd4 {[%clk 0:02:55]} 5. Qxd4 {[%clk 0:02:59]}  Nc6 {[%clk 0:02:53]} 6. Qd3 {[%clk 0:02:59]}  Nf6 {[%clk 0:02:46]} 7. Nd5 {[%clk 0:02:58]}  e6 {[%clk 0:02:24]} 8. Nxf6+ {[%clk 0:02:56]}  Qxf6 {[%clk 0:02:25]} 9. c3 {[%clk 0:02:55]}  Be7 {[%clk 0:02:11]} 10. Bg5 {[%clk 0:02:53]}  Ne5 {[%clk 0:02:11]} 11. Nxe5 {[%clk 0:02:44]}  Qxg5 {[%clk 0:02:11]} 12. Nc4 {[%clk 0:02:45]}  Qc5 {[%clk 0:01:58]} 13. Rd1 {[%clk 0:02:36]}  O-O {[%clk 0:01:58]} 14. b4 {[%clk 0:02:09]}  Qc7 {[%clk 0:01:55]} 15. Be2 {[%clk 0:01:46]}  Rd8 {[%clk 0:01:38]} 16. O-O {[%clk 0:01:43]}  b6 {[%clk 0:01:29]} 17. Ne3 {[%clk 0:01:39]}  Bb7 {[%clk 0:01:27]} 18. c4 {[%clk 0:01:25]}  a5 {[%clk 0:01:14]} 19. a3 {[%clk 0:01:26]}  axb4 {[%clk 0:01:13]} 20. axb4 {[%clk 0:01:27]}  Ra4 {[%clk 0:01:09]} 21. Rb1 {[%clk 0:01:26]}  Rda8 {[%clk 0:01:08]} 22. Rb3 {[%clk 0:01:21]}  Ra2 {[%clk 0:01:00]} 23. Rfb1 {[%clk 0:01:09]}  Bf6 {[%clk 0:00:55]} 24. Bf1 {[%clk 0:01:08]}  Bc6 {[%clk 0:00:55]} 25. g3 {[%clk 0:01:08]}  Qb7 {[%clk 0:00:37]} 26. Bg2 {[%clk 0:01:07]}  Qc7 {[%clk 0:00:28]} 27. h4 {[%clk 0:00:34]}  h5 {[%clk 0:00:27]} 28. b5 {[%clk 0:00:31]}  Bb7 {[%clk 0:00:25]} 29. Rd1 {[%clk 0:00:26]}  Be7 {[%clk 0:00:10]} 30. Nc2 {[%clk 0:00:23]}  g6 {[%clk 0:00:10]} 31. Nb4 {[%clk 0:00:23]}  Ra1 {[%clk 0:00:09]} 32. e5 {[%clk 0:00:21]}  Rxd1+ {[%clk 0:00:08]} 33. Qxd1 {[%clk 0:00:21]}  d5 {[%clk 0:00:04]} 34. cxd5 {[%clk 0:00:19]}  Bxb4 {[%clk 0:00:04]} 35. Rxb4 {[%clk 0:00:19]}  Qxe5 {[%clk 0:00:05]} 36. Rd4 {[%clk 0:00:05]}  Bxd5 {[%clk 0:00:03]} 37. Bxd5 {[%clk 0:00:05]}  exd5 {[%clk 0:00:04]} 38. Rxd5 {[%clk 0:00:06]}  Ra1 {[%clk 0:00:04]} 39. Rxe5 {[%clk 0:00:07]}  Rxd1+ {[%clk 0:00:05]} 40. Kg2 {[%clk 0:00:08]}  Rb1 {[%clk 0:00:04]} 41. Rd5 {[%clk 0:00:08]}  Kg7 {[%clk 0:00:05]} 42. Kf3 {[%clk 0:00:09]}  Rb4 {[%clk 0:00:05]} 43. Ke3 {[%clk 0:00:09]}  Kf8 {[%clk 0:00:05]} 44. Kd3 {[%clk 0:00:07]}  Ke7 {[%clk 0:00:05]} 45. Kc3 {[%clk 0:00:07]}  Rb1 {[%clk 0:00:05]} 46. Kc2 {[%clk 0:00:08]}  Rb4 {[%clk 0:00:05]} 47. Kc3 {[%clk 0:00:08]}  Rb1 {[%clk 0:00:06]} 48. Kc4 {[%clk 0:00:08]}  Rc1+ {[%clk 0:00:06]} 49. Kb3 {[%clk 0:00:08]}  Ke6 {[%clk 0:00:05]} 50. Rd2 {[%clk 0:00:07]}  Rc5 {[%clk 0:00:06]} 51. Kb4 {[%clk 0:00:08]}  Rc1 {[%clk 0:00:06]} 52. Rd8 {[%clk 0:00:07]}  Rb1+ {[%clk 0:00:06]} 53. Kc4 {[%clk 0:00:07]}  Rc1+ {[%clk 0:00:06]} 54. Kb3 {[%clk 0:00:08]}  Rb1+ {[%clk 0:00:06]} 55. Ka4 {[%clk 0:00:09]}  Rb2 {[%clk 0:00:06]} 56. Rb8 {[%clk 0:00:08]}  Ra2+ {[%clk 0:00:05]} 57. Kb3 {[%clk 0:00:08]}  Rxf2 {[%clk 0:00:04]} 58. Rxb6+ {[%clk 0:00:09]}  Kd5 {[%clk 0:00:04]} 59. Rb8 {[%clk 0:00:02]}  Kc5 {[%clk 0:00:04]} 60. Ka4 {[%clk 0:00:03]}  Ra2+ {[%clk 0:00:04]} 61. Kb3 {[%clk 0:00:03]}  Rg2 {[%clk 0:00:05]} 62. Ka4 {[%clk 0:00:03]}  Rxg3 {[%clk 0:00:03]} 63. Rc8+ {[%clk 0:00:03]}  Kb6 {[%clk 0:00:03]} 64. Rc6+ {[%clk 0:00:04]}  Kb7 {[%clk 0:00:04]} 65. Rf6 {[%clk 0:00:04]}  Rg4+ {[%clk 0:00:04]} 66. Ka5 {[%clk 0:00:05]}  Rxh4 {[%clk 0:00:03]} 67. Rxf7+ {[%clk 0:00:06]}  Kc8 {[%clk 0:00:04]} 68. Kb6 {[%clk 0:00:02]}  Rh1 {[%clk 0:00:03]} 69. Rf8+ {[%clk 0:00:01]}  Kd7 {[%clk 0:00:03]} 70. Rg8 {[%clk 0:00:02]}  Rg1 {[%clk 0:00:02]} 71. Ka7 {[%clk 0:00:03]}  Ke7 {[%clk 0:00:02]} 72. b6 {[%clk 0:00:03]}  Ra1+ {[%clk 0:00:01]} 73. Kb8 {[%clk 0:00:02]}  Kf7 {[%clk 0:00:02]} 74. Rc8 {[%clk 0:00:02]}  Rb1 {[%clk 0:00:02]} 75. b7 {[%clk 0:00:02]}  h4 {[%clk 0:00:02]} 76. Ka7 {[%clk 0:00:02]}  Rxb7+ {[%clk 0:00:02]} 77. Kxb7 {[%clk 0:00:03]}  g5 {[%clk 0:00:02]} 78. Rh8 {[%clk 0:00:02]}  Kg7 {[%clk 0:00:02]} 79. Rh5 {[%clk 0:00:03]}  Kg6 {[%clk 0:00:03]} 80. Rh8 {[%clk 0:00:04]}  Kg7 {[%clk 0:00:03]} 81. Rh5 {[%clk 0:00:04]}  Kg6 {[%clk 0:00:03]} 82. Rh8 {[%clk 0:00:04]}  Kf5 {[%clk 0:00:02]} 83. Kc6 {[%clk 0:00:04]}  Kg4 {[%clk 0:00:02]} 84. Kd5 {[%clk 0:00:05]}  h3 {[%clk 0:00:03]} 85. Ke4 {[%clk 0:00:05]}  Kg3 {[%clk 0:00:03]} 86. Rg8 {[%clk 0:00:02]}  g4 {[%clk 0:00:04]} 87. Rh8 {[%clk 0:00:02]}  h2 {[%clk 0:00:03]} 88. Kf5 {[%clk 0:00:02]}  Kf3 {[%clk 0:00:02]} 89. Rxh2 {[%clk 0:00:02]}  g3 {[%clk 0:00:02]} 90. Rh3 {[%clk 0:00:03]}  Kf2 {[%clk 0:00:03]} 91. Kg4 {[%clk 0:00:02]}  g2 {[%clk 0:00:03]} 92. Rf3+ {[%clk 0:00:02]}  Ke2 {[%clk 0:00:03]} 93. Rg3 {[%clk 0:00:03]}  Kf2 {[%clk 0:00:04]} 94. Rf3+ {[%clk 0:00:03]}  Ke2 {[%clk 0:00:04]} 95. Rg3 {[%clk 0:00:04]}  Kf1 {[%clk 0:00:04]} 96. Kh3 {[%clk 0:00:03]}  g1=Q {[%clk 0:00:04]} 97. Rxg1+ {[%clk 0:00:04]}  Kxg1 {[%clk 0:00:05]} 1/2-1/2


[Site "https://www.chess.com"]

[Event "Titled Tuesday Blitz November 01 Late 2022"]
[White "Yanchenko, Roman"]
[Black "Chojnacki, Slawomir"]
[WhiteFideId "4137329"]
[BlackFideId "1117076"]
[WhiteElo "2514"]
[BlackElo "2096"]
[Result "1-0"]
[Round "05"]
[TimeControl "180+1"]
[Date "2022.11.02"]
[WhiteClock "0:01:44"]
[BlackClock "0:00:46"]

1. d4 {[%clk 0:02:50]}  c6 {[%clk 0:03:00]} 2. c4 {[%clk 0:02:50]}  d5 {[%clk 0:03:01]} 3. cxd5 {[%clk 0:02:50]}  cxd5 {[%clk 0:03:01]} 4. Nc3 {[%clk 0:02:51]}  Nc6 {[%clk 0:03:01]} 5. Bf4 {[%clk 0:02:51]}  Nf6 {[%clk 0:03:01]} 6. e3 {[%clk 0:02:51]}  Qb6 {[%clk 0:02:56]} 7. Qb3 {[%clk 0:02:51]}  Bd7 {[%clk 0:02:46]} 8. Nf3 {[%clk 0:02:50]}  e6 {[%clk 0:02:45]} 9. Qxb6 {[%clk 0:02:50]}  axb6 {[%clk 0:02:45]} 10. a3 {[%clk 0:02:49]}  Be7 {[%clk 0:02:40]} 11. Bd3 {[%clk 0:02:47]}  O-O {[%clk 0:02:39]} 12. Ke2 {[%clk 0:02:47]}  Na5 {[%clk 0:02:39]} 13. Ne5 {[%clk 0:02:47]}  Rfc8 {[%clk 0:02:31]} 14. g4 {[%clk 0:02:45]}  Be8 {[%clk 0:02:30]} 15. g5 {[%clk 0:02:45]}  Nd7 {[%clk 0:02:30]} 16. Nf3 {[%clk 0:02:42]}  Nc4 {[%clk 0:02:22]} 17. Bxc4 {[%clk 0:02:35]}  Rxc4 {[%clk 0:02:20]} 18. h4 {[%clk 0:02:32]}  Rac8 {[%clk 0:02:14]} 19. Kd3 {[%clk 0:02:24]}  Nb8 {[%clk 0:02:07]} 20. Ne5 {[%clk 0:02:21]}  R4c7 {[%clk 0:02:02]} 21. h5 {[%clk 0:02:14]}  Nc6 {[%clk 0:01:45]} 22. h6 {[%clk 0:02:14]}  g6 {[%clk 0:01:34]} 23. Ng4 {[%clk 0:02:13]}  Rd7 {[%clk 0:01:29]} 24. Nf6+ {[%clk 0:02:12]}  Bxf6 {[%clk 0:01:28]} 25. gxf6 {[%clk 0:02:13]}  Na7 {[%clk 0:01:26]} 26. Rac1 {[%clk 0:02:11]}  Rdd8 {[%clk 0:01:24]} 27. Kd2 {[%clk 0:02:10]}  Bc6 {[%clk 0:01:18]} 28. Na2 {[%clk 0:02:00]}  Nb5 {[%clk 0:01:13]} 29. Nb4 {[%clk 0:01:59]}  Nd6 {[%clk 0:01:13]} 30. Bxd6 {[%clk 0:01:59]}  Rxd6 {[%clk 0:01:13]} 31. Nd3 {[%clk 0:01:59]}  Rdd8 {[%clk 0:01:08]} 32. Ne5 {[%clk 0:01:58]}  Rc7 {[%clk 0:00:59]} 33. Rc3 {[%clk 0:01:58]}  Rdc8 {[%clk 0:00:58]} 34. Rhc1 {[%clk 0:01:57]}  Kf8 {[%clk 0:00:57]} 35. a4 {[%clk 0:01:56]}  Ke8 {[%clk 0:00:54]} 36. b4 {[%clk 0:01:55]}  Kd8 {[%clk 0:00:48]} 37. b5 {[%clk 0:01:46]}  Be8 {[%clk 0:00:48]} 38. Rxc7 {[%clk 0:01:44]}  Rxc7 {[%clk 0:00:49]} 39. Rxc7 {[%clk 0:01:44]}  Kxc7 {[%clk 0:00:50]} 40. f4 {[%clk 0:01:44]}  Kd8 {[%clk 0:00:46]} 41. Nf3 {[%clk 0:01:44]} 1-0


[Site "https://www.chess.com"]

[Event "Titled Tuesday Blitz November 01 Late 2022"]
[White "Golubova, Anna"]
[Black "Bayo Milagro, Alvaro"]
[WhiteFideId "24173606"]
[BlackFideId "22275240"]
[WhiteElo "2047"]
[BlackElo "2270"]
[Result "0-1"]
[Round "06"]
[TimeControl "180+1"]
[Date "2022.11.02"]
[WhiteClock "0:00:29"]
[BlackClock "0:01:01"]

1. Nf3 {[%clk 0:03:00]}  Nf6 {[%clk 0:02:54]} 2. g3 {[%clk 0:03:01]}  g6 {[%clk 0:02:54]} 3. Bg2 {[%clk 0:03:01]}  Bg7 {[%clk 0:02:55]} 4. O-O {[%clk 0:03:02]}  O-O {[%clk 0:02:56]} 5. d3 {[%clk 0:03:03]}  d6 {[%clk 0:02:56]} 6. e4 {[%clk 0:03:02]}  c5 {[%clk 0:02:56]} 7. Nc3 {[%clk 0:03:01]}  Nc6 {[%clk 0:02:56]} 8. a4 {[%clk 0:03:01]}  a6 {[%clk 0:02:56]} 9. Re1 {[%clk 0:02:58]}  Nd7 {[%clk 0:02:54]} 10. Be3 {[%clk 0:02:54]}  Rb8 {[%clk 0:02:52]} 11. Qd2 {[%clk 0:02:52]}  b5 {[%clk 0:02:52]} 12. axb5 {[%clk 0:02:34]}  axb5 {[%clk 0:02:51]} 13. d4 {[%clk 0:02:31]}  b4 {[%clk 0:02:46]} 14. Ne2 {[%clk 0:02:23]}  Bb7 {[%clk 0:02:43]} 15. dxc5 {[%clk 0:02:20]}  Nxc5 {[%clk 0:02:42]} 16. Nfd4 {[%clk 0:02:07]}  Ne5 {[%clk 0:02:39]} 17. f3 {[%clk 0:01:51]}  Nc4 {[%clk 0:02:36]} 18. Qc1 {[%clk 0:01:51]}  Nxe3 {[%clk 0:02:36]} 19. Qxe3 {[%clk 0:01:51]}  Ra8 {[%clk 0:02:24]} 20. Red1 {[%clk 0:01:44]}  Qb6 {[%clk 0:02:15]} 21. Qf2 {[%clk 0:01:18]}  Ra6 {[%clk 0:01:52]} 22. Rxa6 {[%clk 0:01:16]}  Qxa6 {[%clk 0:01:52]} 23. c3 {[%clk 0:01:10]}  Nd3 {[%clk 0:01:46]} 24. Qe3 {[%clk 0:01:10]}  Nxb2 {[%clk 0:01:45]} 25. Rb1 {[%clk 0:01:09]}  Qa2 {[%clk 0:01:15]} 26. Qc1 {[%clk 0:00:50]}  bxc3 {[%clk 0:01:06]} 27. Nc2 {[%clk 0:00:39]}  Nd3 {[%clk 0:01:01]} 28. Qd1 {[%clk 0:00:38]}  Qa7+ {[%clk 0:01:01]} 29. Kh1 {[%clk 0:00:29]}  Nf2+ {[%clk 0:01:01]} 0-1


[Site "https://www.chess.com"]

[Event "Titled Tuesday Blitz November 01 Late 2022"]
[White "Aghasiyev, Kamal"]
[Black "Timmermans, Mark"]
[WhiteFideId "13402854"]
[BlackFideId "1026399"]
[WhiteElo "2341"]
[BlackElo "2460"]
[Result "1/2-1/2"]
[Round "06"]
[TimeControl "180+1"]
[Date "2022.11.02"]
[WhiteClock "0:00:02"]
[BlackClock "0:00:46"]

1. d4 {[%clk 0:02:58]}  Nf6 {[%clk 0:02:50]} 2. Bg5 {[%clk 0:02:56]}  Ne4 {[%clk 0:02:50]} 3. Bf4 {[%clk 0:02:55]}  c5 {[%clk 0:02:50]} 4. f3 {[%clk 0:02:54]}  Qa5+ {[%clk 0:02:51]} 5. c3 {[%clk 0:01:57]}  Nf6 {[%clk 0:02:50]} 6. d5 {[%clk 0:01:55]}  e6 {[%clk 0:02:50]} 7. e4 {[%clk 0:01:49]}  exd5 {[%clk 0:02:49]} 8. exd5 {[%clk 0:01:49]}  d6 {[%clk 0:02:49]} 9. a4 {[%clk 0:01:33]}  Be7 {[%clk 0:02:49]} 10. Bb5+ {[%clk 0:01:33]}  Bd7 {[%clk 0:02:48]} 11. Na3 {[%clk 0:01:33]}  O-O {[%clk 0:02:45]} 12. Ne2 {[%clk 0:01:31]}  a6 {[%clk 0:02:44]} 13. Nc4 {[%clk 0:01:28]}  Qc7 {[%clk 0:02:44]} 14. Bxd7 {[%clk 0:01:28]}  Nbxd7 {[%clk 0:02:45]} 15. O-O {[%clk 0:01:11]}  b5 {[%clk 0:02:41]} 16. Ne3 {[%clk 0:01:10]}  Rfe8 {[%clk 0:02:40]} 17. Ng3 {[%clk 0:01:04]}  Bf8 {[%clk 0:02:33]} 18. axb5 {[%clk 0:00:55]}  axb5 {[%clk 0:02:34]} 19. Rxa8 {[%clk 0:00:55]}  Rxa8 {[%clk 0:02:34]} 20. Ngf5 {[%clk 0:00:52]}  c4 {[%clk 0:02:12]} 21. Qd4 {[%clk 0:00:46]}  Ne5 {[%clk 0:02:04]} 22. Bxe5 {[%clk 0:00:37]}  dxe5 {[%clk 0:02:05]} 23. Qh4 {[%clk 0:00:31]}  Qb6 {[%clk 0:01:43]} 24. Kh1 {[%clk 0:00:29]}  g6 {[%clk 0:01:41]} 25. d6 {[%clk 0:00:13]}  Nh5 {[%clk 0:01:34]} 26. Nd5 {[%clk 0:00:12]}  Qd8 {[%clk 0:01:32]} 27. Nde7+ {[%clk 0:00:09]}  Kh8 {[%clk 0:01:31]} 28. Qg5 {[%clk 0:00:08]}  f6 {[%clk 0:01:27]} 29. Nxg6+ {[%clk 0:00:08]}  hxg6 {[%clk 0:01:25]} 30. Qxg6 {[%clk 0:00:08]}  Qe8 {[%clk 0:01:26]} 31. Qg4 {[%clk 0:00:06]}  Ng7 {[%clk 0:01:21]} 32. Nh6 {[%clk 0:00:05]}  Ra7 {[%clk 0:01:14]} 33. Rd1 {[%clk 0:00:04]}  f5 {[%clk 0:01:01]} 34. Qh3 {[%clk 0:00:04]}  Nh5 {[%clk 0:00:58]} 35. Nxf5 {[%clk 0:00:04]}  Rh7 {[%clk 0:00:58]} 36. d7 {[%clk 0:00:02]}  Qd8 {[%clk 0:00:58]} 37. Qg4 {[%clk 0:00:02]}  Nf6 {[%clk 0:00:55]} 38. Qg6 {[%clk 0:00:02]}  Rxd7 {[%clk 0:00:50]} 39. Rxd7 {[%clk 0:00:01]}  Nxd7 {[%clk 0:00:51]} 40. Qh5+ {[%clk 0:00:01]}  Kg8 {[%clk 0:00:50]} 41. Qg6+ {[%clk 0:00:01]}  Kh8 {[%clk 0:00:50]} 42. Qh5+ {[%clk 0:00:02]}  Kg8 {[%clk 0:00:47]} 43. Qg6+ {[%clk 0:00:02]}  Kh8 {[%clk 0:00:46]} 1/2-1/2


[Site "https://www.chess.com"]